fUSD/lending_fUSD_20251113
["ID","MTS","AMOUNT","RATE_DAILY","PERIOD"]
[393806986,1763014846744,-151.0,0.00017894,2]
[393806987,1763014846766,-126.5604731,0.00017973,2]
[393806988,1763014855433,-145.82406386,0.00017973,2]
[393806989,1763014855457,-110.69550771,0.00017973,2]
[393806990,1763014856918,-166.66,0.00017973,2]
[393806991,1763014861693,-177.44061278,0.00017973,2]
[393806992,1763014865643,-42.4769503,0.00017973,2]
[393806993,1763014865665,-230.60142253,0.00017973,2]
[393806994,1763014870055,-156.1344306,0.000179,2]
[393806995,1763014870078,-2.3723951,0.00017973,2]
[393806996,1763014871980,-196.61655846,0.00017973,2]
[393806997,1763014873993,-151.0,0.00017973,2]
[393806998,1763014879387,-26.95832574,0.00017973,2]
[393806999,1763014879409,-177.03985575,0.00017973,2]
[393807000,1763014880897,-322.96014425,0.00017973,2]
[393807001,1763014880920,-150.53266556,0.00017973,2]
[393807002,1763014886579,-164.46490794,0.00017973,2]
[393807003,1763014888868,-185.0024265,0.00017973,2]
[393807004,1763014888890,-117.28632204,0.00017973,2]
[393807005,1763014893427,-250.0,0.0001764,2]
[393807006,1763014897219,-160.51980076,0.0001764,2]
[393807007,1763014901734,-31.62619924,0.0001764,2]
[393807008,1763014901759,-184.114,0.0001764,2]
[393807009,1763014901783,-42.03491378,0.00017973,2]
[393807010,1763014903170,-340.67876418,0.00017973,2]
[393807011,1763014903192,-50.77985575,0.00017973,2]
[393807012,1763014906385,-449.22014425,0.00017973,2]
[393807013,1763014906409,-300.0,0.00017998,2]
[393807014,1763014906434,-1200.0,0.00017998,2]
[393807015,1763014906458,-300.0,0.00017998,2]
[393807016,1763014906481,-150.0,0.00017998,2]
[393807017,1763014906504,-304.83626428,0.00017999,2]
[393807018,1763014906533,-259.30108776,0.00017999,2]
[393807019,1763014906560,-500.0,0.00017999,2]
[393807020,1763014906589,-500.0,0.00017999,2]
[393807021,1763014906617,-500.0,0.00017999,2]
[393807022,1763014906646,-500.0,0.00017999,2]
[393807023,1763014906673,-500.0,0.00017999,2]
[393807024,1763014906701,-500.0,0.00017999,2]
[393807025,1763014906728,-500.0,0.00017999,2]
[393807026,1763014906998,-334.61065404,0.00017999,2]
[393807027,1763014907029,-500.0,0.00017999,2]
[393807028,1763014907059,-500.0,0.00017999,2]
[393807029,1763014907086,-500.0,0.00017999,2]
[393807030,1763014907119,-500.0,0.00017999,2]
[393807031,1763014907146,-500.0,0.00017999,2]
[393807032,1763014907176,-500.0,0.00017999,2]
[393807033,1763014907203,-500.0,0.00017999,2]
[393807034,1763014907234,-500.0,0.00017999,2]
[393807035,1763014907263,-500.0,0.00017999,2]
[393807036,1763014907293,-500.0,0.00017999,2]
[393807037,1763014907322,-500.0,0.00017999,2]
[393807038,1763014907350,-500.0,0.00017999,2]
[393807039,1763014907380,-500.0,0.00017999,2]
[393807040,1763014907409,-500.0,0.00017999,2]
[393807041,1763014907436,-500.0,0.00017999,2]
[393807042,1763014907462,-500.0,0.00017999,2]
[393807043,1763014907489,-500.0,0.00017999,2]
[393807044,1763014907516,-500.0,0.00017999,2]
[393807045,1763014907544,-500.0,0.00017999,2]
[393807046,1763014907576,-500.0,0.00017999,2]
[393807047,1763014907601,-316.18173575,0.00017999,2]
[393807048,1763014907630,-500.0,0.00017999,2]
[393807049,1763014907658,-500.0,0.00017999,2]
[393807050,1763014907688,-500.0,0.00017999,2]
[393807051,1763014907715,-500.0,0.00017999,2]
[393807052,1763014907742,-500.0,0.00017999,2]
[393807053,1763014907769,-232.84038149,0.00017999,2]
[393807054,1763014907798,-500.0,0.00017999,2]
[393807055,1763014907822,-500.0,0.00017999,2]
[393807056,1763014907846,-500.0,0.00017999,2]
[393807057,1763014907869,-500.0,0.00017999,2]
[393807058,1763014907892,-494.32865764,0.00017999,2]
[393807059,1763014907918,-500.0,0.00017999,2]
[393807060,1763014907945,-500.0,0.00017999,2]
[393807061,1763014907972,-250.86191237,0.00017999,2]
[393807062,1763014908000,-500.0,0.00017999,2]
[393807063,1763014908029,-369.60378466,0.00017999,2]
[393807064,1763014908061,-150.07487092,0.00017999,2]
[393807065,1763014908089,-500.0,0.00017999,2]
[393807066,1763014908116,-284.62903412,0.00017999,2]
[393807067,1763014908140,-28603.51147272,0.00018,2]
[393807068,1763014911839,-155.5003736,0.00018,2]
[393807069,1763014918053,-195.0,0.00018,2]
[393807070,1763014920010,-293.04947608,0.00018,2]
[393807071,1763014926662,-222.33988732,0.00018,2]
[393807072,1763014927382,150.88,9.257e-05,2]
[393807074,1763014928309,500.0,0.00040702,30]
[393807075,1763014928341,906.325429,7.945e-05,2]
[393807076,1763014928943,500.0,0.00040702,30]
[393807077,1763014930050,500.0,0.00040702,30]
[393807078,1763014930736,500.0,0.00040702,30]
[393807079,1763014931400,500.0,0.00040702,30]
[393807080,1763014931701,500.0,0.00040702,30]
[393807081,1763014931831,500.0,0.00040702,30]
[393807082,1763014932193,500.0,0.00040702,30]
[393807083,1763014932381,500.0,0.00040702,30]
[393807084,1763014932509,500.0,0.00040702,30]
[393807085,1763014932858,500.0,0.00040702,30]
[393807086,1763014933044,500.0,0.00040702,30]
[393807087,1763014933552,500.0,0.00040702,30]
[393807088,1763014933642,500.0,0.00040702,30]
[393807089,1763014933740,500.0,0.00040702,30]
[393807090,1763014934227,500.0,0.00040702,30]
[393807091,1763014934623,500.0,0.00040702,30]
[393807092,1763014934713,500.0,0.00040702,30]
[393807093,1763014934872,500.0,0.00040702,30]
[393807094,1763014935031,500.0,0.00040702,30]
[393807095,1763014935117,500.0,0.00040702,30]
[393807096,1763014935155,-250.0,0.00017999,2]
[393807097,1763014935483,500.0,0.00040702,30]
[393807098,1763014935634,500.0,0.00040702,30]
[393807099,1763014935727,500.0,0.00040702,30]
[393807100,1763014936110,500.0,0.00040702,30]
[393807101,1763014936274,500.0,0.00040702,30]
[393807102,1763014936409,500.0,0.00040702,30]
[393807103,1763014936887,500.0,0.00040702,30]
[393807104,1763014937014,500.0,0.00040702,30]
[393807105,1763014937698,500.0,0.00040702,30]
[393807106,1763014938314,500.0,0.00040702,30]
[393807107,1763014938342,-178.36460072,0.000179,2]
[393807108,1763014939127,500.0,0.00040702,30]
[393807109,1763014939742,500.0,0.00040702,30]
[393807110,1763014940683,500.0,0.00040702,30]
[393807111,1763014940781,507.46104451,0.00040702,30]
[393807112,1763014940998,500.0,0.00040702,30]
[393807113,1763014941474,-240.10234171,0.000179,2]
[393807114,1763014941625,500.0,0.00040702,30]
[393807115,1763014942265,500.0,0.00040702,30]
[393807116,1763014944000,414.0,0.00040702,30]
[393807117,1763014944626,429.318,0.00040702,30]
[393807118,1763014945224,445.202766,0.00040702,30]
[393807119,1763014950759,-240.22591771,0.000179,2]
[393807120,1763014953697,-173.36051182,0.000179,2]
[393807121,1763014958187,-167.94662804,0.000179,2]
[393807122,1763014958211,-37.41172634,0.000179,2]
[393807123,1763014962517,-199.02799582,0.000179,2]
[393807124,1763014965633,-289.53309674,0.000179,2]
[393807125,1763014968194,-245.51125146,0.000179,2]
[393807126,1763014974445,-191.71266356,0.000179,2]
[393807127,1763014976403,-160.54,0.000179,2]
[393807128,1763014981216,-207.78912186,0.000179,2]
[393807129,1763014984209,-280.78466054,0.000179,2]
[393807130,1763014989823,-196.76516185,0.000179,2]
[393807131,1763014992217,-300.0,0.000179,2]
[393807132,1763014996984,-390.92432183,0.000179,2]
[393807133,1763014997006,-50.96439877,0.00017973,2]
[393807134,1763015000955,-113.58130752,0.00017973,2]
[393807135,1763015000976,-55.3087708,0.00017993,2]
[393807136,1763015005969,-268.89354039,0.00017993,2]
[393807137,1763015008232,-158.72648078,0.00017993,2]
[393807138,1763015010730,-258.22599039,0.00017993,2]
[393807139,1763015016100,-200.0,0.00017856,2]
[393807140,1763015016122,-82.25232999,0.00017993,2]
[393807141,1763015017776,-208.98802936,0.00017993,2]
[393807142,1763015021485,-290.981863,0.00017993,2]
[393807143,1763015022956,-165.12203588,0.00017922,2]
[393807144,1763015022979,-126.7457196,0.00017993,2]
[393807145,1763015029877,-313.45907732,0.00017993,2]
[393807146,1763015031820,-236.3723841,0.00017993,2]
[393807147,1763015033242,-220.38548273,0.00017993,2]
[393807148,1763015037527,-279.77363288,0.00017993,2]
[393807149,1763015039584,-392.27553776,0.00017993,2]
[393807150,1763015041648,-300.0,0.00017993,2]
[393807151,1763015046300,-180.95813511,0.00017992,2]
[393807152,1763015050513,-119.04186489,0.00017992,2]
[393807153,1763015050537,-67.1585042,0.00017993,2]
[393807154,1763015053962,-210.4552947,0.00017993,2]
[393807155,1763015056686,-162.18,0.00017993,2]
[393807156,1763015061681,503.28339207,0.00040702,60]
[393807157,1763015063053,-381.50790527,0.00017993,2]
[393807158,1763015065051,-190.4422575,0.00017993,2]
[393807159,1763015070135,-271.64562503,0.00017993,2]
[393807160,1763015072838,-185.08854538,0.00017993,2]
[393807161,1763015076160,6102.62695952,0.00040702,120]
[393807162,1763015077749,-248.407888,0.00017993,2]
[393807163,1763015080321,-283.15824942,0.00017993,2]
[393807164,1763015085445,-219.61004506,0.00017993,2]
[393807165,1763015089804,-181.34241489,0.00017993,2]
[393807166,1763015092620,-195.0,0.00017993,2]
[393807167,1763015094690,-344.80038537,0.00017993,2]
[393807168,1763015097444,-161.49,0.00017993,2]
[393807169,1763015101372,-231.10645961,0.00017993,2]
[393807170,1763015103558,-176.33,0.00017992,2]
[393807171,1763015105669,-123.67,0.00017992,2]
[393807172,1763015105693,-89.62300196,0.00017992,2]
[393807173,1763015129948,1039.0,0.00040702,30]
[393807174,1763015133504,6272.74250449,0.00040702,30]
[393807175,1763015139157,151.95565704,0.00040702,30]
[393807177,1763015175449,1002.0,0.00040702,30]
[393807179,1763015226750,500.0,0.00040702,120]
[393807180,1763015226974,500.0,0.00040702,120]
[393807181,1763015227596,500.0,0.00040702,120]
[393807182,1763015228249,500.0,0.00040702,120]
[393807183,1763015228752,500.0,0.00040702,120]
[393807184,1763015228872,500.0,0.00040702,120]
[393807185,1763015229496,500.0,0.00040702,120]
[393807186,1763015230434,500.0,0.00040702,120]
[393807187,1763015231878,500.0,0.00040702,120]
[393807188,1763015232513,500.0,0.00040702,120]
[393807189,1763015233097,500.0,0.00040702,120]
[393807190,1763015233744,500.0,0.00040702,120]
[393807191,1763015234355,500.0,0.00040702,120]
[393807192,1763015235005,500.0,0.00040702,120]
[393807193,1763015235662,500.0,0.00040702,120]
[393807194,1763015236338,500.0,0.00040702,120]
[393807195,1763015237239,500.0,0.00040702,120]
[393807196,1763015237427,500.0,0.00040702,120]
[393807197,1763015237627,500.0,0.00040702,120]
[393807198,1763015238087,500.0,0.00040702,120]
[393807199,1763015238269,500.0,0.00040702,120]
[393807200,1763015238608,500.0,0.00040702,120]
[393807201,1763015238744,500.0,0.00040702,120]
[393807202,1763015238882,500.0,0.00040702,120]
[393807203,1763015239229,500.0,0.00040702,120]
[393807204,1763015239443,500.0,0.00040702,120]
[393807205,1763015239530,500.0,0.00040702,120]
[393807206,1763015239878,500.0,0.00040702,120]
[393807207,1763015240146,500.0,0.00040702,120]
[393807208,1763015240505,500.0,0.00040702,120]
[393807209,1763015240779,500.0,0.00040702,120]
[393807210,1763015241092,500.0,0.00040702,120]
[393807211,1763015241432,500.0,0.00040702,120]
[393807212,1763015241744,500.0,0.00040702,120]
[393807213,1763015242386,500.0,0.00040702,120]
[393807214,1763015242988,500.0,0.00040702,120]
[393807215,1763015249820,414.0,0.00040702,120]
[393807216,1763015250452,414.0,0.00040702,120]
[393807217,1763015270624,68942.794571,0.00017,2]
[393807220,1763015306765,290.07800316,0.00040702,120]
[393807222,1763015308443,300.15829632,0.00040702,120]
[393807223,1763015312408,508.91534107,0.00040702,120]
[393807226,1763015314865,-439.13947357,0.00017,2]
[393807228,1763015317984,-157.81361727,0.00017,2]
[393807229,1763015361464,-151.0,0.00016754,2]
[393807230,1763015365457,162.13854722,0.00040702,120]
[393807231,1763015365670,151.0,0.00016442,2]
[393807232,1763015382819,151.0,0.00016408,2]
[393807233,1763015399899,151.0,0.00016684,2]
[393807248,1763015432474,-151.0,0.00016958,2]
[393807249,1763015432484,-300.0,0.00016999,2]
[393807250,1763015432493,-123.759077,0.00016999,2]
[393807251,1763015432520,-176.240923,0.00016999,2]
[393807252,1763015432530,-883.09753637,0.00016999,2]
[393807253,1763015432542,-316.90246363,0.00016999,2]
[393807254,1763015432551,-300.0,0.00016999,2]
[393807255,1763015432561,-13345.71539613,0.00017,2]
[393807256,1763015432572,-16941.57498543,0.00017,2]
[393807258,1763015432583,-263.220004,0.00017,2]
[393807260,1763015432630,-419.62178628,0.00017,2]
[393807266,1763015438360,-518.68828366,0.00017,2]
[393807267,1763015438372,-874.22355268,0.00017,2]
[393807268,1763015440273,-308.39408881,0.00017,2]
[393807270,1763015440415,-7683.44538826,0.00017,2]
[393807271,1763015440425,-20453.662868,0.00017,2]
[393807272,1763015440436,-3670.10718,0.00017,2]
[393807292,1763015442702,-1.7e-07,0.00017,2]
[393807299,1763015443761,-10359.0,0.00017,2]
[393807300,1763015443780,-252.42237141,0.00017,2]
[393807317,1763015446420,-6651.66332047,0.00017,2]
[393807318,1763015446478,-1073.89041291,0.00017,2]
[393807319,1763015446598,-2821.62120849,0.00017,2]
[393807320,1763015446608,-166.66,0.00017074,2]
[393807321,1763015446617,-2171.79,0.00017096,2]
[393807326,1763015446876,-459.57,0.00017164,2]
[393807327,1763015446905,-514.14,0.0001719,2]
[393807328,1763015446924,-999.0,0.00017211,3]
[393807329,1763015446934,-166.66,0.00017433,2]
[393807330,1763015446943,-166.66,0.00017793,2]
[393807331,1763015446953,-516.05866923,0.000178,2]
[393807332,1763015446962,-1200.0,0.00017899,2]
[393807333,1763015446973,-1000.0,0.000179,2]
[393807334,1763015446983,-173.84012228,0.000179,2]
[393807335,1763015446994,-2326.15987772,0.000179,2]
[393807337,1763015447006,-156.1344306,0.000179,2]
[393807338,1763015447015,-165.12203588,0.000179,2]
[393807339,1763015447024,-300.0,0.00017946,2]
[393807340,1763015447034,-588.8836558,0.00017965,2]
[393807341,1763015447051,-38.3889669,0.00017965,2]
[393807342,1763015447061,-5532.06557278,0.00017993,2]
[393807344,1763015524962,414.0,0.00040702,120]
[393807345,1763015525051,500.0,0.00040702,120]
[393807346,1763015525147,250.0,0.00040702,120]
[393807347,1763015525227,151.0,0.00040702,120]
[393807348,1763015525590,518.5,0.00040702,120]
[393807349,1763015525692,250.0,0.00040702,120]
[393807350,1763015525775,151.0,0.00040702,120]
[393807351,1763015525871,429.318,0.00040702,120]
[393807352,1763015526185,537.6845,0.00040702,120]
[393807353,1763015526270,250.0,0.00040702,120]
[393807354,1763015526347,151.0,0.00040702,120]
[393807355,1763015526442,445.202766,0.00040702,120]
[393807356,1763015526751,500.0,0.00040702,120]
[393807357,1763015526884,250.0,0.00040702,120]
[393807358,1763015526967,557.5788265,0.00040702,120]
[393807359,1763015527047,151.0,0.00040702,120]
[393807360,1763015527134,461.67526834,0.00040702,120]
[393807361,1763015527225,500.0,0.00040702,120]
[393807362,1763015527514,478.75725327,0.00040702,120]
[393807363,1763015527603,578.20924308,0.00040702,120]
[393807364,1763015527696,500.0,0.00040702,120]
[393807365,1763015528256,578.20924308,0.00040702,120]
[393807366,1763015528401,496.47127164,0.00040702,120]
[393807367,1763015528538,500.0,0.00040702,120]
[393807368,1763015530445,205.24715273,0.00040702,120]
[393807369,1763015530547,500.0,0.00040702,120]
[393807370,1763015531304,500.0,0.00040702,120]
[393807371,1763015532017,500.0,0.00040702,120]
[393807372,1763015533202,500.0,0.00040702,120]
[393807373,1763015533383,500.0,0.00040702,120]
[393807374,1763015533999,500.0,0.00040702,120]
[393807375,1763015534507,500.0,0.00040702,120]
[393807376,1763015534660,500.0,0.00040702,120]
[393807377,1763015535130,500.0,0.00040702,120]
[393807378,1763015535457,500.0,0.00040702,120]
[393807379,1763015535771,500.0,0.00040702,120]
[393807380,1763015535876,500.0,0.00040702,120]
[393807381,1763015536425,500.0,0.00040702,120]
[393807382,1763015536542,500.0,0.00040702,120]
[393807383,1763015537088,500.0,0.00040702,120]
[393807384,1763015537258,500.0,0.00040702,120]
[393807385,1763015537695,500.0,0.00040702,120]
[393807386,1763015537844,500.0,0.00040702,120]
[393807387,1763015538312,500.0,0.00040702,120]
[393807388,1763015538477,500.0,0.00040702,120]
[393807389,1763015538943,500.0,0.00040702,120]
[393807390,1763015539145,500.0,0.00040702,120]
[393807391,1763015540040,500.0,0.00040702,120]
[393807392,1763015540296,500.0,0.00040702,120]
[393807393,1763015540672,500.0,0.00040702,120]
[393807394,1763015540969,500.0,0.00040702,120]
[393807395,1763015541537,500.0,0.00040702,120]
[393807396,1763015541629,500.0,0.00040702,120]
[393807397,1763015542181,500.0,0.00040702,120]
[393807398,1763015542267,500.0,0.00040702,120]
[393807399,1763015542840,500.0,0.00040702,120]
[393807400,1763015543976,500.0,0.00040702,120]
[393807401,1763015544238,500.0,0.00040702,120]
[393807402,1763015544697,500.0,0.00040702,120]
[393807403,1763015545323,500.0,0.00040702,120]
[393807404,1763015545414,500.0,0.00040702,120]
[393807405,1763015546004,500.0,0.00040702,120]
[393807406,1763015546102,500.0,0.00040702,120]
[393807407,1763015546621,500.0,0.00040702,120]
[393807408,1763015546709,500.0,0.00040702,120]
[393807409,1763015547241,500.0,0.00040702,120]
[393807410,1763015547326,500.0,0.00040702,120]
[393807411,1763015547889,500.0,0.00040702,120]
[393807412,1763015547982,500.0,0.00040702,120]
[393807413,1763015548504,500.0,0.00040702,120]
[393807414,1763015548587,500.0,0.00040702,120]
[393807415,1763015549145,500.0,0.00040702,120]
[393807416,1763015549244,500.0,0.00040702,120]
[393807417,1763015549875,500.0,0.00040702,120]
[393807418,1763015550267,500.0,0.00040702,120]
[393807419,1763015550896,500.0,0.00040702,120]
[393807420,1763015551547,500.0,0.00040702,120]
[393807421,1763015734410,248.2175307,0.00040702,120]
[393807422,1763015825724,500.0,0.00040702,120]
[393807423,1763015825915,500.0,0.00040702,120]
[393807424,1763015826386,500.0,0.00040702,120]
[393807425,1763015826559,500.0,0.00040702,120]
[393807426,1763015827168,500.0,0.00040702,120]
[393807427,1763015829205,500.0,0.00040702,120]
[393807428,1763015829898,500.0,0.00040702,120]
[393807429,1763015831849,500.0,0.00040702,120]
[393807430,1763015833020,500.0,0.00040702,120]
[393807431,1763015833483,161.62253886,0.00040702,120]
[393807432,1763015833647,500.0,0.00040702,120]
[393807433,1763015834273,500.0,0.00040702,120]
[393807434,1763015834893,500.0,0.00040702,120]
[393807435,1763015835262,500.0,0.00040702,120]
[393807436,1763015835564,500.0,0.00040702,120]
[393807437,1763015835893,500.0,0.00040702,120]
[393807438,1763015836213,500.0,0.00040702,120]
[393807439,1763015836551,500.0,0.00040702,120]
[393807440,1763015836666,500.0,0.00040702,120]
[393807441,1763015836850,500.0,0.00040702,120]
[393807442,1763015837203,500.0,0.00040702,120]
[393807443,1763015837300,500.0,0.00040702,120]
[393807444,1763015837458,500.0,0.00040702,120]
[393807445,1763015837878,500.0,0.00040702,120]
[393807446,1763015837968,500.0,0.00040702,120]
[393807447,1763015838126,500.0,0.00040702,120]
[393807448,1763015838547,500.0,0.00040702,120]
[393807449,1763015838629,500.0,0.00040702,120]
[393807450,1763015838751,500.0,0.00040702,120]
[393807451,1763015839237,500.0,0.00040702,120]
[393807452,1763015839325,500.0,0.00040702,120]
[393807453,1763015839636,500.0,0.00040702,120]
[393807454,1763015840317,500.0,0.00040702,120]
[393807455,1763015840411,500.0,0.00040702,120]
[393807456,1763015840591,500.0,0.00040702,120]
[393807457,1763015840849,500.0,0.00040702,120]
[393807458,1763015841094,500.0,0.00040702,120]
[393807459,1763015841725,500.0,0.00040702,120]
[393807460,1763015842334,500.0,0.00040702,120]
[393807461,1763015842960,500.0,0.00040702,120]
[393807462,1763015853778,186.96222806,0.00040702,120]
[393807463,1763015924473,155.72,0.0002564,120]
[393807464,1763016003221,500.0,0.00040702,120]
[393807465,1763016089605,500.0,0.00040702,30]
[393807467,1763016122742,257.54615605,0.00040702,60]
[393807468,1763016124797,615.35719512,0.00040702,120]
[393807469,1763016128123,500.0,0.00040702,120]
[393807470,1763016128302,500.0,0.00040702,120]
[393807471,1763016128733,500.0,0.00040702,120]
[393807472,1763016128862,500.0,0.00040702,120]
[393807473,1763016129360,500.0,0.00040702,120]
[393807474,1763016129487,500.0,0.00040702,120]
[393807475,1763016129969,500.0,0.00040702,120]
[393807476,1763016130098,500.0,0.00040702,120]
[393807477,1763016130659,500.0,0.00040702,120]
[393807478,1763016131177,500.0,0.00040702,120]
[393807479,1763016131272,500.0,0.00040702,120]
[393807480,1763016131363,500.0,0.00040702,120]
[393807481,1763016131817,500.0,0.00040702,120]
[393807482,1763016131926,500.0,0.00040702,120]
[393807483,1763016132433,317.42962522,0.00040702,120]
[393807484,1763016132526,500.0,0.00040702,120]
[393807485,1763016132622,500.0,0.00040702,120]
[393807486,1763016133079,500.0,0.00040702,120]
[393807487,1763016133181,500.0,0.00040702,120]
[393807488,1763016133718,500.0,0.00040702,120]
[393807489,1763016133809,500.0,0.00040702,120]
[393807490,1763016134374,500.0,0.00040702,120]
[393807491,1763016134470,500.0,0.00040702,120]
[393807492,1763016134734,656.39955565,0.00027397,120]
[393807493,1763016135010,500.0,0.00040702,120]
[393807494,1763016135130,500.0,0.00040702,120]
[393807495,1763016135634,500.0,0.00040702,120]
[393807496,1763016135933,500.0,0.00040702,120]
[393807497,1763016136368,500.0,0.00040702,120]
[393807498,1763016137009,500.0,0.00040702,120]
[393807499,1763016137644,500.0,0.00040702,120]
[393807500,1763016138592,500.0,0.00040702,120]
[393807501,1763016141541,520.0,0.00040702,120]
[393807502,1763016145975,1000.0,0.00040702,30]
[393807503,1763016154243,500.0,0.00040702,30]
[393807504,1763016195361,1000.0,0.00040702,30]
[393807505,1763016206226,1000.0,0.00040702,30]
[393807506,1763016262682,349.91,0.00013699,2]
[393807508,1763016303166,499.999999,0.00040702,120]
[393807509,1763016320788,458.96,0.00040702,30]
[393807510,1763016424635,333.48912649,0.00040702,120]
[393807512,1763016430691,500.0,0.00040702,120]
[393807513,1763016431351,500.0,0.00040702,120]
[393807514,1763016431977,500.0,0.00040702,120]
[393807515,1763016432545,270.05421002,0.00040702,120]
[393807516,1763016432638,500.0,0.00040702,120]
[393807517,1763016433244,500.0,0.00040702,120]
[393807518,1763016433751,414.0,0.00040702,120]
[393807519,1763016433900,500.0,0.00040702,120]
[393807520,1763016434548,500.0,0.00040702,120]
[393807521,1763016435165,500.0,0.00040702,120]
[393807522,1763016435776,500.0,0.00040702,120]
[393807523,1763016436402,500.0,0.00040702,120]
[393807524,1763016437022,500.0,0.00040702,120]
[393807525,1763016437805,500.0,0.00040702,120]
[393807526,1763016438456,500.0,0.00040702,120]
[393807527,1763016438580,500.0,0.00040702,120]
[393807528,1763016438659,500.0,0.00040702,120]
[393807529,1763016438860,500.0,0.00040702,120]
[393807530,1763016439062,500.0,0.00040702,120]
[393807531,1763016439158,500.0,0.00040702,120]
[393807532,1763016439420,500.0,0.00040702,120]
[393807533,1763016439739,500.0,0.00040702,120]
[393807534,1763016439830,500.0,0.00040702,120]
[393807535,1763016440048,500.0,0.00040702,120]
[393807536,1763016440304,500.0,0.00040702,120]
[393807537,1763016440933,500.0,0.00040702,120]
[393807538,1763016441594,500.0,0.00040702,120]
[393807539,1763016442229,500.0,0.00040702,120]
[393807540,1763016447691,520.0,0.00040702,120]
[393807541,1763016448358,539.24,0.00040702,120]
[393807544,1763016592602,250.0,0.00017,2]
[393807549,1763016631545,-300.0,0.00017032,2]
[393807550,1763016631556,-300.0,0.00017032,2]
[393807551,1763016631572,-300.0,0.00017032,2]
[393807552,1763016631582,-1200.0,0.00017032,2]
[393807553,1763016631592,-3651.51784936,0.00017033,2]
[393807554,1763016631611,-1315.64532491,0.00017033,2]
[393807555,1763016631623,-580.36061433,0.00017033,2]
[393807556,1763016631638,-772.7912233,0.00017033,2]
[393807557,1763016631680,-7755.8649881,0.00017033,2]
[393807558,1763016631689,-325.56,0.00017058,2]
[393807559,1763016631699,-400.36775104,0.00017067,2]
[393807560,1763016631712,-195.0,0.00017076,2]
[393807561,1763016631722,-155.72,0.00017094,2]
[393807562,1763016631731,-358.7773563,0.00017124,2]
[393807563,1763016631740,-4525.3320033,0.00017124,2]
[393807564,1763016631751,-195.0,0.00017125,2]
[393807565,1763016631761,-1000.0,0.00017227,2]
[393807566,1763016631770,-250.0,0.00017257,2]
[393807567,1763016631779,-1113.25,0.0001784,2]
[393807568,1763016631791,-200.0,0.00017856,2]
[393807569,1763016631801,-1000.0,0.000179,2]
[393807570,1763016631811,-298.05950698,0.000179,2]
[393807571,1763016631820,-156.1344306,0.000179,2]
[393807572,1763016631830,-2425.8647,0.000179,2]